bitfinex/quotes_ETHUSD_20220309
["timestamp","ask_amount","ask_price","bid_price","bid_amount"]
[1646847770186,0.9117,2744.2,2743.8,1.35941585]
[1646847770590,0.3,2744.1,2743.7,1.35941585]
[1646847771390,1.092,2744.0,2743.7,1.35941585]
[1646847771587,1.092,2743.9,2743.7,1.35941585]
[1646847771786,2.30376,2743.9,2743.6,1.35941585]
[1646847772185,2.60376,2743.9,2743.6,1.35941585]
[1646847772386,1.09096788,2743.9,2743.6,1.06655871]
[1646847772830,1.09096788,2743.9,2743.6,1.07841671]
[1646847773029,2.00272788,2743.9,2743.6,1.07841671]
[1646847773429,2.00272788,2743.9,2743.8,1.80684947]
[1646847773631,2.00272788,2743.9,2743.7,0.011997]
[1646847773830,2.00272788,2743.9,2743.7,0.023664]
[1646847774032,2.00272788,2743.9,2743.7,0.011997]
[1646847774230,2.60272788,2743.9,2743.7,0.011997]
[1646847774430,2.60272788,2743.9,2743.6,0.011858]
[1646847774631,2.60272788,2743.9,2743.7,0.00417757]
[1646847775130,2.60272788,2743.9,2743.7,0.01598157]
[1646847775331,1.28172802,2743.8,2743.7,0.00417757]
[1646847775631,1.28172802,2743.8,2743.6,0.011667]
[1646847775632,4.78172802,2743.8,2743.6,0.011667]
[1646847775832,4.78172802,2743.8,2743.1,1.35554313]
[1646847775833,5.58477255,2743.8,2743.7,0.00417757]
[1646847776030,5.88477255,2743.8,2743.7,0.00417757]
[1646847776232,6.18477255,2743.8,2743.7,0.00417757]
[1646847776679,7.65384642,2743.8,2743.3,0.011667]
[1646847776875,7.65384642,2743.8,2742.5,4.6521209]
[1646847776876,3.6478797,2743.2,2742.5,4.6521209]
[1646847777074,4.2478797,2743.2,2743.1,0.012125]
[1646847777275,5.57264755,2743.1,2742.5,1.1521209]
[1646847777677,0.3,2743.0,2742.5,1.1521209]
[1646847778179,5.57264755,2743.1,2742.7,0.00403779]
[1646847778378,5.57264755,2743.1,2742.7,1.35118791]
[1646847778577,5.57264755,2743.1,2742.8,0.3638]
[1646847778778,0.04991746,2743.8,2742.9,0.07908689]
[1646847778978,5.57264755,2743.6,2743.1,0.3638]
[1646847779183,7.5093216,2744.9,2743.5,0.3638]
[1646847779379,7.5093216,2744.9,2743.7,0.3638]
[1646847779380,3.5,2744.6,2743.7,0.3638]
[1646847779578,3.5,2744.6,2743.8,3.57096838]
[1646847780228,0.05978207,2744.8,2744.0,0.3638]
[1646847780526,0.18945485,2744.9,2744.8,1.17501387]
[1646847780527,3.511667,2744.9,2744.8,1.17501387]
[1646847780728,3.5,2744.9,2744.8,1.17501387]
[1646847781126,0.9112613,2745.0,2744.8,1.17501387]
[1646847781735,0.3,2744.9,2744.8,0.00395354]
[1646847782732,0.3,2744.9,2744.7,1.21116107]
[1646847782936,0.45445887,2744.9,2744.7,1.21511466]
[1646847783134,0.05931625,2744.8,2744.7,1.21511466]
[1646847783975,0.05931625,2744.8,2744.7,1.21116107]
[1646847785482,0.97076625,2744.8,2744.7,1.21116107]
[1646847786582,0.97076625,2744.8,2744.6,0.00391987]
[1646847786782,0.3,2744.7,2744.6,0.00391987]
[1646847787482,0.30326656,2744.7,2744.0,0.07131936]
[1646847787731,0.00326656,2744.7,2744.5,0.00391996]
[1646847787931,0.00326656,2744.7,2744.6,0.94367229]
[1646847788931,0.00326656,2744.7,2744.6,4.44367229]
[1646847789131,0.00326656,2744.7,2744.6,6.02249395]
[1646847790331,0.00326656,2744.7,2744.6,16.97035971]
[1646847790531,0.05340757,2745.6,2744.8,0.00653311]
[1646847790734,0.05340757,2745.6,2744.9,1.51539952]
[1646847791384,0.9111145,2745.5,2745.1,0.00370342]
[1646847791584,0.3,2745.4,2745.1,1.51910294]
[1646847792181,0.9111145,2745.5,2745.2,1.03546339]
[1646847792385,0.9111145,2745.5,2745.3,5.01539952]
[1646847792584,0.9111145,2745.5,2745.4,1.51539952]
[1646847792786,0.9111145,2745.5,2745.3,1.51539952]
[1646847792986,0.9111145,2745.5,2745.4,1.51539952]
[1646847794990,1.8226,2745.4,2745.3,0.00373891]
[1646847795230,3.8226,2745.4,2744.8,1.0955571]
[1646847795429,2.73386,2745.4,2744.8,1.0955571]
[1646847795834,1.11748412,2745.4,2744.8,0.00653311]
[1646847796632,1.8225528,2745.3,2744.8,0.00653311]
[1646847796836,5.5,2745.1,2744.1,0.67432142]
[1646847797033,0.91158,2744.5,2744.0,0.92136166]
[1646847797232,0.91158,2744.4,2744.0,0.92136166]
[1646847797836,0.3,2744.5,2744.0,0.92136166]
[1646847798136,1.8231485,2744.6,2744.0,0.92136166]
[1646847798338,0.9115743,2744.5,2744.0,0.92136166]
[1646847798536,0.9115743,2744.5,2744.0,1.59568308]
[1646847798737,0.3,2744.6,2744.0,1.59568308]
[1646847798979,0.3,2744.6,2744.1,0.67432142]
[1646847799179,0.15397022,2744.7,2744.1,0.67432142]
[1646847799785,0.15397022,2744.7,2744.2,0.00397436]
[1646847799980,0.15397022,2744.7,2744.5,0.92787537]
[1646847800780,2.7336955,2745.3,2744.5,0.92787537]
[1646847800781,0.46042428,2745.2,2744.5,0.92787537]
[1646847800981,0.46042428,2745.2,2744.5,0.93193126]
[1646847801183,0.9112228,2745.1,2744.5,1.84323126]
[1646847801585,1.2112228,2745.1,2744.5,1.84323126]
[1646847801985,2.7340813,2745.0,2744.5,0.92787537]
[1646847802182,2.7340813,2745.0,2744.7,0.00405569]
[1646847803043,2.7341759,2744.9,2744.7,0.00405569]
[1646847803241,2.7341759,2744.9,2744.1,1.81752142]
[1646847803242,3.25266026,2744.9,2744.1,1.81752142]
[1646847803441,3.25266026,2744.9,2744.7,0.00405564]
[1646847804341,3.25266026,2744.9,2744.6,0.011667]
[1646847804642,2.34123026,2744.9,2744.7,0.00382451]
[1646847805544,2.34123026,2744.9,2744.6,0.023334]
[1646847805545,3.25276026,2744.9,2744.6,0.023334]
[1646847805740,3.25276026,2744.9,2744.7,0.011679]
[1646847805941,3.25276026,2744.9,2744.7,0.01550351]
[1646847806776,3.01181315,2744.9,2744.7,0.0235]
[1646847806976,3.01181315,2744.9,2744.7,0.03937851]
[1646847807577,3.01181315,2744.9,2744.7,0.02732451]
[1646847807982,3.01181315,2744.9,2744.7,0.0235]
[1646847808187,3.01181315,2744.9,2744.7,0.01540532]
[1646847808683,3.01181315,2744.9,2744.7,0.00372632]
[1646847808882,1.43001436,2744.9,2744.7,0.00372632]
[1646847809084,2.34138616,2744.9,2744.6,0.023334]
[1646847809483,2.34138616,2744.9,2744.7,0.00372632]
[1646847809684,2.34138616,2744.9,2744.7,0.01541332]
[1646847810230,2.34138616,2744.9,2744.7,0.02728432]
[1646847810430,2.34138616,2744.9,2744.7,0.023558]
[1646847810630,2.34138616,2744.9,2744.7,0.02728432]
[1646847811428,2.34138616,2744.9,2744.7,0.01541332]
[1646847811631,2.34138616,2744.9,2744.7,0.011687]
[1646847811831,2.34138616,2744.9,2744.7,0.01542217]
[1646847812130,2.34138616,2744.9,2744.7,0.02729017]
[1646847812738,2.34138616,2744.9,2744.7,0.023555]
[1646847813134,2.34138616,2744.9,2744.7,0.02729017]
[1646847813533,2.34138616,2744.9,2744.7,0.00373517]
[1646847813733,3.5,2744.8,2744.3,0.43302359]
[1646847813982,0.0567938,2744.8,2744.2,0.43302359]
[1646847814180,1.8230054,2744.7,2744.2,0.43302359]
[1646847814380,0.8899838,2744.5,2744.2,0.43302359]
[1646847814579,0.04851572,2744.4,2744.2,0.43302359]
[1646847815280,0.06068489,2744.6,2744.2,0.43302359]
[1646847815480,0.27483521,2744.9,2744.2,0.43302359]
[1646847815884,0.14004882,2744.7,2744.2,0.43302359]
[1646847816080,0.49127734,2744.7,2744.2,0.43302359]
[1646847816481,0.19127734,2744.7,2744.2,0.43302359]
[1646847816982,0.19127734,2744.7,2744.0,2.41645876]
[1646847817831,0.19127734,2744.7,2744.2,0.00397746]
[1646847818435,0.19127734,2744.7,2744.2,1.51947854]
[1646847818633,0.19127734,2744.7,2744.3,1.51550108]
[1646847818832,0.19127734,2744.7,2744.4,1.51550108]
[1646847819032,0.19127734,2744.7,2744.5,1.51550108]
[1646847819231,0.19127734,2744.7,2744.3,0.00405561]
[1646847819232,0.19127734,2744.7,2744.6,1.51550108]
[1646847820132,0.19127734,2744.7,2744.4,1.51550108]
[1646847820335,0.19127734,2744.7,2744.5,1.5195565]
[1646847820533,0.19127734,2744.7,2744.6,1.51550108]
[1646847821383,0.91152,2744.6,2744.5,0.00405542]
[1646847821584,0.91152,2744.6,2744.5,1.51953884]
[1646847821784,0.91152,2744.6,2744.5,0.00405542]
[1646847821985,0.91152,2744.6,2744.5,1.51953884]
[1646847822185,0.91152,2744.6,2744.5,0.00405542]
[1646847822386,0.91152,2744.6,2744.5,1.51548342]
[1646847822585,0.91152,2744.6,2744.2,1.51548342]
[1646847822885,0.91152,2744.6,2744.4,0.00383687]
[1646847823286,2.7345576,2744.6,2744.4,0.00383687]
[1646847823490,0.49127734,2744.7,2744.4,1.51548342]
[1646847823887,0.19127734,2744.7,2744.4,1.51932033]
[1646847824290,0.19127734,2744.7,2744.4,2.19855493]
[1646847824689,0.19127734,2744.7,2744.4,2.19471802]
[1646847825141,0.19127734,2744.7,2744.5,0.6792346]
[1646847825632,1.12990436,2744.9,2744.6,3.10596802]
[1646847825633,0.21848436,2744.9,2744.6,3.10596802]
[1646847825832,0.21848436,2744.9,2744.7,1.51548342]
[1646847826038,0.21848436,2744.9,2744.7,2.19471802]
[1646847826431,0.21848436,2744.9,2744.7,3.06882101]
[1646847826631,0.21848436,2744.9,2744.8,1.51548342]
[1646847828339,0.21848436,2744.9,2744.6,2.19471802]
[1646847828543,0.21848436,2744.9,2744.7,1.51548342]
[1646847828738,0.21848436,2744.9,2744.8,1.51548342]
[1646847829178,0.21848436,2744.9,2744.6,2.1984459]
[1646847829378,0.21848436,2744.9,2744.7,2.19471802]
[1646847829578,0.21848436,2744.9,2744.8,1.51548342]
[1646847829980,1.87494964,2744.8,2744.6,0.00373515]
[1646847830379,1.87494964,2744.8,2744.6,1.51917268]
[1646847830579,1.87494964,2744.8,2744.7,1.51543753]
[1646847830784,8.47768902,2744.8,2744.3,2.19467213]
[1646847830980,8.47768902,2744.8,2744.4,1.51543753]
[1646847830981,0.04957975,2744.7,2744.4,1.51543753]
[1646847831185,1.96121555,2744.7,2744.6,0.00373512]
[1646847831383,1.96121555,2744.7,2744.6,1.51917265]
[1646847831384,5.76121555,2744.7,2744.6,1.51917265]
[1646847831580,5.76121555,2744.7,2744.6,0.00373512]
[1646847831581,5.46121555,2744.7,2744.6,0.00373512]
[1646847831780,5.7116358,2744.7,2744.6,0.00373512]
[1646847831981,5.7116358,2744.7,2744.2,0.6792346]
[1646847831982,5.7116358,2744.7,2744.4,1.51543753]
[1646847832183,5.4116358,2744.7,2744.5,1.5191727]
[1646847832382,5.7116358,2744.7,2744.5,0.00373517]
[1646847832643,4.52739683,2744.6,2744.5,0.00373517]
[1646847833133,4.52739683,2744.6,2744.1,0.6792346]
[1646847833334,0.91163,2744.5,2744.1,0.6792346]
[1646847833632,0.91163,2744.5,2744.4,0.00373471]
[1646847834434,0.91163,2744.5,2744.1,0.6792346]
[1646847834635,0.91163,2744.5,2744.3,0.0037348]
[1646847835533,0.91163,2744.5,2744.1,0.6792346]
[1646847835934,4.12242679,2744.6,2744.1,0.6792346]
[1646847836133,7.62242679,2744.6,2744.3,0.00373484]
[1646847836779,4.12242679,2744.6,2744.3,1.51543753]
[1646847836980,7.62242679,2744.6,2744.4,1.51543753]
[1646847837179,4.42242679,2744.6,2744.5,1.51557312]
[1646847837381,6.24574679,2744.6,2744.3,0.00373484]
[1646847837585,7.15741679,2744.6,2744.3,0.00373484]
[1646847837885,6.53499,2744.6,2744.1,2.19480772]
[1646847838085,5.62332,2744.6,2744.2,1.51557312]
[1646847838287,5.62332,2744.6,2744.3,1.51930796]
[1646847838586,5.62332,2744.6,2744.4,1.51557312]
[1646847838786,5.62332,2744.6,2744.5,1.51557312]
[1646847839387,3.8,2744.6,2744.5,1.51557312]
[1646847839786,3.8,2744.6,2744.4,0.00373476]
[1646847840446,3.8,2744.6,2744.3,0.6792346]
[1646847840645,3.8,2744.6,2744.4,0.0037348]
[1646847840847,3.8,2744.6,2744.4,0.6829694]
[1646847841047,0.3,2744.6,2744.4,0.6829694]
[1646847841247,1.8231558,2744.7,2744.4,0.6829694]
[1646847841451,2.1231558,2744.7,2744.4,0.6829694]
[1646847841652,2.1231558,2744.7,2744.4,0.6792346]
[1646847841948,1.8231558,2744.7,2744.4,0.6829694]
[1646847842149,2.1231558,2744.7,2744.4,0.6829694]
[1646847842348,2.1231558,2744.7,2744.5,1.51557312]
[1646847842548,3.5,2744.6,2744.4,0.6829694]
[1646847842750,3.5,2744.6,2744.3,2.19473732]
[1646847842949,3.8,2744.6,2744.4,1.51550272]
[1646847843151,3.8,2744.6,2744.5,1.51923743]
[1646847843552,3.8,2744.6,2744.5,0.00373471]
[1646847843983,3.8,2744.6,2744.3,0.6792346]
[1646847844387,3.8,2744.6,2744.4,0.00373475]
[1646847844785,3.8,2744.6,2744.4,1.51923747]
[1646847844988,4.72804243,2744.6,2744.5,1.51550272]
[1646847845186,4.72804243,2744.6,2744.3,0.6792346]
[1646847845589,4.72804243,2744.6,2744.4,0.00373479]
[1646847846091,3.5,2744.5,2744.4,0.00373479]
[1646847846292,4.0,2744.4,2744.3,1.51550272]
[1646847846494,5.59084114,2744.4,2744.3,1.51550272]
[1646847846698,5.59084114,2744.4,2744.1,0.6792346]
[1646847846699,4.62623514,2744.4,2744.1,0.6792346]
[1646847846995,5.62623514,2744.4,2744.2,1.51550272]
[1646847847192,5.62623514,2744.4,2744.3,1.51550272]
[1646847847193,4.32623514,2744.4,2744.3,1.51550272]
[1646847847395,8.42623514,2744.4,2744.3,1.51550272]
[1646847847640,7.90023514,2744.4,2744.0,0.6792346]
[1646847847836,7.90023514,2744.4,2744.1,2.19473732]
[1646847848035,7.90023514,2744.4,2744.2,1.51550272]
[1646847848335,7.90023514,2744.4,2744.3,1.51550272]
[1646847848534,11.40023514,2744.4,2744.0,0.6792346]
[1646847848735,8.44842769,2744.4,2744.1,2.19473732]
[1646847848935,8.44842769,2744.4,2744.2,1.51550272]
[1646847849136,6.62483169,2744.4,2744.3,1.51550272]
[1646847849340,6.62483169,2744.4,2744.2,2.19473732]
[1646847849636,6.62483169,2744.4,2744.3,1.51550272]
[1646847849836,4.80124369,2744.4,2744.3,1.51550272]
[1646847850135,0.00808114,2744.3,2744.2,0.6792346]
[1646847852283,0.00808114,2744.3,2744.1,0.00417428]
[1646847852486,0.00808114,2744.3,2744.2,0.07712665]
[1646847852888,0.00808114,2744.3,2744.2,2.49358705]
[1646847853285,0.00808114,2744.3,2744.2,3.54148958]
[1646847854088,3.50808114,2744.3,2744.2,2.6405319]
[1646847854288,3.80808114,2744.3,2744.2,2.56340525]
[1646847855141,3.80808114,2744.3,2744.2,3.46436293]
[1646847855636,3.50808114,2744.3,2744.2,3.46436293]
[1646847856036,1.89168848,2744.3,2744.2,3.46436293]
[1646847856238,1.89168848,2744.3,2744.2,2.56340525]
[1646847858038,1.89168848,2744.3,2744.2,3.47033783]
[1646847858437,1.89168848,2744.3,2744.2,2.56340525]
[1646847858637,1.89168848,2744.3,2744.2,3.47035363]
[1646847859485,1.89168848,2744.3,2744.2,2.4224511]
[1646847859887,1.89168848,2744.3,2744.2,0.90694838]
[1646847860590,1.89168848,2744.3,2744.2,2.4224511]
[1646847860785,1.89168848,2744.3,2744.2,0.90694838]
[1646847861388,1.89168848,2744.3,2744.2,1.51550272]
[1646847861589,1.89168848,2744.3,2744.1,0.91088421]
[1646847862090,1.89168848,2744.3,2744.1,0.90694838]
[1646847862294,1.89168848,2744.3,2744.1,0.91088426]
[1646847862492,2.80328848,2744.3,2744.1,0.91088426]
[1646847863136,2.80328848,2744.3,2744.1,0.90694838]
[1646847863335,3.10328848,2744.3,2744.1,0.90694838]
[1646847863536,3.10328848,2744.3,2744.1,0.91080344]
[1646847864137,2.80328848,2744.3,2744.1,0.91080344]
[1646847864337,2.80328848,2744.3,2744.2,0.08455392]
[1646847864537,2.80328848,2744.3,2744.2,1.51550272]
[1646847864739,2.80328848,2744.3,2744.1,0.91080344]
[1646847864942,2.80328848,2744.3,2744.2,2.4224511]
[1646847865139,2.80328848,2744.3,2744.2,1.51550272]
[1646847865539,2.80328848,2744.3,2744.1,0.90694838]
[1646847865940,2.80328848,2744.3,2744.1,0.9108034]
[1646847866792,2.80328848,2744.3,2744.1,0.90694838]
[1646847866991,2.80328848,2744.3,2744.1,0.91087955]
[1646847867190,6.60328848,2744.3,2744.1,0.91087955]
[1646847867394,3.46781726,2744.3,2744.2,2.19579448]
[1646847867596,7.49381726,2744.3,2744.2,1.51550272]
[1646847867794,4.99381726,2744.3,2744.2,1.51550272]
[1646847867994,4.99381726,2744.3,2744.0,0.68029176]
[1646847868194,0.015155,2744.2,2744.1,0.00393113]
[1646847868696,3.99381726,2744.3,2744.1,0.00393113]
[1646847868697,3.16781726,2744.3,2744.1,0.00393113]
[1646847868897,2.25621726,2744.3,2744.2,0.68019075]
[1646847870144,2.80953783,2744.3,2744.2,0.68019075]
[1646847871339,2.80953783,2744.3,2744.2,1.51550272]
[1646847871540,2.80953783,2744.3,2744.2,2.19573013]
[1646847871739,2.80953783,2744.3,2744.2,0.68022741]
[1646847871938,2.80953783,2744.3,2744.2,1.51550272]
[1646847872139,2.80953783,2744.3,2744.1,0.00392683]
[1646847872340,2.80953783,2744.3,2744.2,0.68032567]
[1646847872940,2.80953783,2744.3,2744.2,1.51550272]
[1646847873141,2.80953783,2744.3,2744.2,0.68044795]
[1646847873740,2.80953783,2744.3,2744.1,0.00392683]
[1646847873983,2.80953783,2744.3,2744.1,1.51550272]
[1646847874185,2.80953783,2744.3,2744.2,1.51550272]
[1646847874583,2.80953783,2744.3,2744.1,0.00392617]
[1646847874783,2.80953783,2744.3,2744.1,0.91087455]
[1646847875187,2.80953783,2744.3,2744.2,3.5]
[1646847875188,1.89168848,2744.3,2744.2,3.5]
[1646847875390,1.89168848,2744.3,2744.2,5.9224511]
[1646847875586,1.89168848,2744.3,2744.2,2.4224511]
[1646847875783,1.89168848,2744.3,2744.2,0.90694838]
[1646847875984,0.27543725,2744.3,2744.2,1.51550272]
[1646847876185,0.00808114,2744.3,2744.2,1.51550272]
[1646847876585,0.00808114,2744.3,2744.1,1.51550272]
[1646847876784,0.00808114,2744.3,2744.1,2.87497202]
[1646847877641,0.00808114,2744.3,2744.2,3.5]
[1646847877835,0.00808114,2744.3,2744.2,5.01550272]
[1646847878139,3.50808114,2744.3,2744.2,1.51550272]
[1646847878334,3.50808114,2744.3,2744.1,2.87496839]
[1646847878736,3.50808114,2744.3,2744.2,3.5]
[1646847878937,3.50808114,2744.3,2744.2,5.01550272]
[1646847879337,3.50808114,2744.3,2744.2,1.51550272]
[1646847879740,3.50808114,2744.3,2744.1,2.87496839]
[1646847879939,3.50808114,2744.3,2744.2,5.01550272]
[1646847880341,3.80808114,2744.3,2744.2,5.01550272]
[1646847880744,3.50808114,2744.3,2744.2,5.01550272]
[1646847880945,3.50808114,2744.3,2744.2,6.37104585]
[1646847881147,3.50808114,2744.3,2744.2,2.87104585]
[1646847881681,3.50808114,2744.3,2744.2,6.37104585]
[1646847882086,0.00808114,2744.3,2744.2,6.37104585]
[1646847882787,0.00808114,2744.3,2744.2,5.01550272]
[1646847884188,0.00808114,2744.3,2744.2,6.37577184]
[1646847884389,0.00808114,2744.3,2744.2,2.87577184]
[1646847884590,0.00808114,2744.3,2744.2,1.51550272]
[1646847884990,0.00808114,2744.3,2744.1,2.87577184]
[1646847885255,0.00808114,2744.3,2744.2,1.51550272]
[1646847885457,0.00808114,2744.3,2744.2,2.42240727]
[1646847886058,0.00808114,2744.3,2744.2,1.51550272]
[1646847886452,0.00808114,2744.3,2744.2,2.42240727]
[1646847887453,0.00808114,2744.3,2744.2,1.51550272]
[1646847888258,0.02054014,2744.3,2744.2,1.51550272]
[1646847889480,0.02054014,2744.3,2744.1,2.42632998]
[1646847889680,0.02054014,2744.3,2744.2,1.51550272]
[1646847890085,0.00808114,2744.3,2744.2,2.42240727]
[1646847890886,0.00808114,2744.3,2744.2,1.51550272]
[1646847891085,0.00808114,2744.3,2744.2,2.4224074]
[1646847891487,0.00808114,2744.3,2744.2,5.01550272]
[1646847892086,0.00808114,2744.3,2744.2,6.45225376]
[1646847894142,0.00808114,2744.3,2744.2,5.09198464]
[1646847894446,3.5,2744.4,2744.3,5.51616228]
[1646847894642,3.5,2744.4,2744.3,10.531665]
[1646847895142,3.5,2744.4,2744.3,5.031665]
[1646847895544,3.5,2744.4,2744.3,6.39158709]
[1646847895742,0.011667,2744.7,2744.3,5.031665]
[1646847895943,0.011667,2744.7,2744.6,0.90644887]
[1646847896142,1.90733611,2744.8,2744.6,0.90644887]
[1646847896397,1.90733611,2744.8,2744.6,2.42195159]
[1646847896398,1.89566911,2744.8,2744.6,2.42195159]
[1646847897487,1.89566911,2744.8,2744.7,0.9694366]
[1646847897690,1.89566911,2744.8,2744.7,2.48493932]
[1646847900235,1.89566911,2744.8,2744.7,5.98493932]
[1646847900434,1.89566911,2744.8,2744.7,2.48493932]
[1646847900834,1.89566911,2744.8,2744.7,1.51550272]
[1646847901036,1.89566911,2744.8,2744.7,2.19503989]
[1646847901237,1.89566911,2744.8,2744.7,0.67953717]
[1646847901637,1.89566911,2744.8,2744.7,2.19503989]
[1646847901840,1.89566911,2744.8,2744.7,0.67953717]
[1646847902039,1.89566911,2744.8,2744.7,1.51550272]
[1646847902238,1.89566911,2744.8,2744.6,0.67953717]
[1646847902239,2.19566911,2744.8,2744.6,0.67953717]
[1646847902842,2.49566911,2744.8,2744.6,0.67953717]
[1646847903443,2.49566911,2744.8,2744.5,1.51550272]
[1646847903444,2.49566911,2744.8,2744.7,1.51550272]
[1646847903644,3.93323911,2744.8,2744.7,1.51550272]
[1646847903899,7.01186958,2744.8,2744.7,1.51550272]
[1646847904091,8.01186958,2744.8,2744.3,1.531665]
[1646847904292,8.01186958,2744.8,2744.4,1.51550272]
[1646847904497,1.8231612,2744.7,2744.4,1.51550272]
[1646847904693,3.5,2744.5,2744.4,1.51550272]
[1646847904992,3.68724685,2744.5,2744.4,1.51550272]
[1646847905292,4.28724685,2744.5,2744.4,1.51550272]
[1646847906794,3.98724685,2744.5,2744.4,1.51550272]
[1646847907000,4.28724685,2744.5,2744.4,1.51550272]
[1646847907194,4.28724685,2744.5,2744.4,2.19503989]
[1646847907394,3.98724685,2744.5,2744.4,2.19503989]
[1646847908035,3.8,2744.5,2744.4,1.51550272]
[1646847908235,3.98736916,2744.5,2744.4,1.51550272]
[1646847908437,3.8,2744.5,2744.4,1.51550272]
[1646847909037,3.8,2744.5,2744.4,2.20776566]
[1646847911138,3.5,2744.5,2744.4,2.20776566]
[1646847911399,3.5,2744.5,2744.4,5.70776566]
[1646847911588,3.5,2744.5,2744.4,6.70360425]
[1646847912596,3.5,2744.5,2744.4,3.20360425]
[1646847912795,3.5,2744.5,2744.4,2.29715538]
[1646847913196,3.5,2744.5,2744.4,3.20360425]
[1646847913397,3.5,2744.5,2744.4,2.29715538]
[1646847914598,0.54764549,2744.9,2744.4,2.29715538]
[1646847914802,0.54764549,2744.9,2744.6,0.67963236]
[1646847915232,0.54764549,2744.9,2744.8,0.69226294]
[1646847915233,0.84764549,2744.9,2744.8,0.69226294]
[1646847915432,0.84764549,2744.9,2744.8,2.20776566]
[1646847916237,2.67868247,2745.0,2744.8,2.20776566]
[1646847916435,2.67868247,2745.0,2744.9,1.51550272]
[1646847918241,2.97868247,2745.0,2744.9,1.51550272]
[1646847919987,0.71272808,2745.0,2744.9,1.51550272]
[1646847920387,0.55581259,2745.0,2744.9,1.86163419]
[1646847920585,0.85581259,2745.0,2744.9,2.20776566]
[1646847921787,1.05593332,2745.0,2744.9,2.20776566]
[1646847925653,0.85581259,2745.0,2744.9,2.20776566]
[1646847935293,0.55581259,2745.0,2744.9,2.20776566]
[1646847935703,0.60308297,2745.0,2744.9,2.20776566]
[1646847936294,0.90308297,2745.0,2744.9,2.20776566]
[1646847936893,0.91133,2745.2,2745.0,0.71292901]
[1646847937092,0.91133,2745.2,2745.1,1.51550272]
[1646847937494,0.91133,2745.2,2745.1,2.20776566]
[1646847938344,1.21133,2745.2,2745.1,2.20776566]
[1646847938538,1.01133,2745.2,2745.1,2.20776566]
[1646847947541,1.01133,2745.2,2744.9,0.09001018]
[1646847947542,4.0,2745.1,2744.9,0.09001018]
[1646847947744,10.1490461,2745.0,2744.4,0.67963236]
[1646847947942,0.91157,2744.8,2744.4,0.67963236]
[1646847948141,0.526,2744.7,2744.4,0.67963236]
[1646847948343,1.4375907,2744.7,2744.4,0.67963236]
[1646847948546,1.4375907,2744.7,2744.5,0.67963236]
[1646847948741,0.3,2744.6,2744.5,0.67963236]
[1646847948988,0.3,2744.6,2744.3,0.10298628]
[1646847948989,4.7653836,2745.2,2744.4,1.00516656]
[1646847949192,1.3343667,2745.2,2744.7,1.75126196]
[1646847949391,0.45259648,2745.1,2744.8,0.08404219]
[1646847949592,0.46331203,2745.2,2744.8,0.76454291]
[1646847949991,0.46331203,2745.2,2745.1,1.8227]
[1646847950199,1.82655335,2745.3,2745.1,1.8227]
[1646847950995,1.82282,2745.3,2745.1,1.8227]
[1646847951198,1.82655365,2745.3,2745.1,1.8227]
[1646847951396,0.00373365,2745.3,2745.1,1.8227]
[1646847951594,0.00373365,2745.3,2745.2,1.1682677]
[1646847952294,2.1063,2745.6,2745.2,1.1682677]
[1646847952494,0.00373378,2745.4,2745.2,1.1682677]
[1646847952752,0.00373378,2745.4,2745.1,2.50320072]
[1646847953250,0.9112,2745.6,2745.1,1.8227]
[1646847953650,0.00373378,2745.4,2745.1,1.8227]
[1646847954449,0.91503378,2745.4,2745.1,1.8227]
[1646847954653,0.9113,2745.4,2745.1,1.8227]
[1646847954852,0.91503376,2745.4,2745.1,2.50320072]
[1646847955254,0.91503376,2745.4,2745.1,1.8227]
[1646847955654,0.9113,2745.4,2745.1,1.8227]
[1646847956153,0.9152334,2745.4,2745.1,1.8227]
[1646847956811,1.66161969,2745.6,2745.4,0.70091241]
[1646847957111,0.526,2745.6,2745.4,0.70091241]
[1646847957514,1.82266,2745.5,2745.4,0.70091241]
[1646847961846,12.93266,2745.5,2745.4,0.70091241]
[1646847963147,1.82266,2745.5,2745.4,0.70091241]
[1646847963448,12.93266,2745.5,2745.4,0.70091241]
[1646847966388,16.43266,2745.5,2745.4,0.70091241]
[1646847966588,19.3376769,2745.5,2745.4,0.70091241]
[1646847966793,20.3376769,2745.5,2745.4,0.70091241]
[1646847967652,20.3376769,2745.5,2745.4,2.21595995]
[1646847967844,11.11,2745.3,2745.1,1.8227]
[1646847968045,11.11,2745.1,2744.7,0.00403313]
[1646847968346,11.11,2744.9,2744.7,0.00403313]
[1646847968546,12.11,2744.8,2744.7,0.00403313]
[1646847968945,12.11,2744.8,2744.3,0.69216772]
[1646847969150,12.11,2744.8,2744.7,1.82323]
[1646847969348,13.0217,2744.8,2744.7,1.82323]
[1646847970245,1.9117,2744.8,2744.7,1.82323]
[1646847970448,0.9117,2744.8,2744.7,1.82323]
[1646847971046,1.0,2745.1,2744.8,0.07115902]
[1646847971246,0.95179759,2745.2,2744.9,0.94672169]
[1646847971489,11.11,2745.1,2744.8,0.07115902]
[1646847971789,0.91144,2745.0,2744.9,0.91144]
[1646847972189,0.91144,2745.0,2744.9,1.21144]
[1646847972390,1.91144,2745.0,2744.9,1.21144]
[1646847973593,1.91144,2745.0,2744.9,0.91144]
[1646847973994,0.91144,2745.0,2744.9,0.91144]
[1646847974395,1.45297991,2745.0,2744.9,0.91144]
[1646847974599,0.54153991,2745.0,2744.9,1.21144]
[1646847974796,0.54153991,2745.0,2744.9,0.91144]
[1646847974996,0.54153991,2745.0,2744.9,1.21144]
[1646847975242,0.91132,2745.4,2745.0,0.07073244]
[1646847975544,0.91132,2745.4,2745.1,0.923429]
[1646847975744,0.91132,2745.4,2745.2,0.07731818]
[1646847976950,0.0039274,2745.5,2745.4,0.70436064]
[1646847977446,12.11,2745.6,2745.4,0.70436064]
[1646847977645,12.11392699,2745.6,2745.4,0.70436064]
[1646847978346,1.82273,2745.5,2745.4,0.70436064]
[1646847982199,5.5,2745.3,2744.5,0.90644887]
[1646847982405,5.5,2745.3,2744.4,0.91142]
[1646847982406,0.91151,2745.1,2744.7,0.00392822]
[1646847982651,11.11,2744.9,2744.7,0.00392822]
[1646847982843,1.526,2744.8,2744.7,0.00392822]
[1646847983445,1.526,2744.8,2744.3,1.03997066]
[1646847983643,1.526,2744.8,2744.4,0.0787983]
[1646847983644,0.9117,2744.8,2744.4,0.0787983]
[1646847983846,0.9117,2744.8,2744.6,0.00392801]
[1646847984647,0.9117,2744.8,2744.5,1.89124054]
[1646847984950,0.9117,2744.8,2744.6,0.00392805]
[1646847985149,1.46001128,2744.8,2744.6,0.00392805]
[1646847985347,1.46001128,2744.8,2744.6,0.68356859]
[1646847985748,1.46001128,2744.8,2744.6,0.67964054]
[1646847985952,1.46001128,2744.8,2744.5,1.84124054]
[1646847986150,1.46001128,2744.8,2744.6,0.00392805]